[Event "Titled Tuesday Blitz December 06 Late 2022"]
[White "Yurasova, Daria"]
[Black "Walentukiewicz, Michal"]
[WhiteFideId "34146919"]
[BlackFideId "1126903"]
[WhiteElo "2098"]
[BlackElo "2028"]
[Result "0-1"]
[Round "10"]
[TimeControl "180+1"]
[Date "2022.12.07"]
[WhiteClock "0:00:05"]
[BlackClock "0:00:15"]

1. d4 {[%clk 0:03:00]}  g6 {[%clk 0:02:58]} 2. c4 {[%clk 0:03:00]}  Bg7 {[%clk 0:02:56]} 3. Nc3 {[%clk 0:03:00]}  c5 {[%clk 0:02:51]} 4. Nf3 {[%clk 0:02:59]}  cxd4 {[%clk 0:02:51]} 5. Nxd4 {[%clk 0:03:00]}  Nc6 {[%clk 0:02:51]} 6. e3 {[%clk 0:02:59]}  Nf6 {[%clk 0:02:51]} 7. Be2 {[%clk 0:02:59]}  O-O {[%clk 0:02:48]} 8. O-O {[%clk 0:03:00]}  Nxd4 {[%clk 0:02:48]} 9. exd4 {[%clk 0:03:00]}  d5 {[%clk 0:02:49]} 10. b3 {[%clk 0:02:57]}  b6 {[%clk 0:02:49]} 11. Bb2 {[%clk 0:02:57]}  Bb7 {[%clk 0:02:49]} 12. Rc1 {[%clk 0:02:57]}  Rc8 {[%clk 0:02:49]} 13. Bf3 {[%clk 0:02:56]}  Qd7 {[%clk 0:02:49]} 14. Re1 {[%clk 0:02:56]}  dxc4 {[%clk 0:02:48]} 15. Bxb7 {[%clk 0:02:51]}  Qxb7 {[%clk 0:02:48]} 16. Ba3 {[%clk 0:02:47]}  Rfe8 {[%clk 0:02:45]} 17. bxc4 {[%clk 0:02:30]}  Rxc4 {[%clk 0:02:45]} 18. Ne2 {[%clk 0:02:23]}  Rxc1 {[%clk 0:02:44]} 19. Qxc1 {[%clk 0:02:24]}  Nd5 {[%clk 0:02:44]} 20. Ng3 {[%clk 0:02:22]}  Bxd4 {[%clk 0:02:37]} 21. Qd2 {[%clk 0:02:19]}  Bg7 {[%clk 0:02:35]} 22. Rd1 {[%clk 0:02:16]}  e6 {[%clk 0:02:32]} 23. h3 {[%clk 0:02:15]}  Rc8 {[%clk 0:02:25]} 24. Ne4 {[%clk 0:02:13]}  Nc3 {[%clk 0:02:21]} 25. Nd6 {[%clk 0:02:11]}  Qa6 {[%clk 0:02:00]} 26. Nxc8 {[%clk 0:02:07]}  Qxa3 {[%clk 0:02:00]} 27. Re1 {[%clk 0:01:29]}  Nd5 {[%clk 0:01:57]} 28. Qg5 {[%clk 0:01:19]}  Bf6 {[%clk 0:01:50]} 29. Qg3 {[%clk 0:01:05]}  Qxa2 {[%clk 0:01:26]} 30. Qb8 {[%clk 0:01:04]}  Kg7 {[%clk 0:01:22]} 31. Qxa7 {[%clk 0:00:55]}  Qd2 {[%clk 0:01:19]} 32. Rf1 {[%clk 0:00:54]}  Bd4 {[%clk 0:01:19]} 33. Nd6 {[%clk 0:00:50]}  Qf4 {[%clk 0:01:16]} 34. Qd7 {[%clk 0:00:34]}  Be5 {[%clk 0:01:00]} 35. g3 {[%clk 0:00:20]}  Qd4 {[%clk 0:00:54]} 36. Qxf7+ {[%clk 0:00:18]}  Kh6 {[%clk 0:00:52]} 37. Qf8+ {[%clk 0:00:19]}  Kg5 {[%clk 0:00:43]} 38. Nf7+ {[%clk 0:00:17]}  Kf6 {[%clk 0:00:41]} 39. Nxe5+ {[%clk 0:00:16]}  Kxe5 {[%clk 0:00:41]} 40. Qh8+ {[%clk 0:00:16]}  Ke4 {[%clk 0:00:41]} 41. Qxh7 {[%clk 0:00:16]}  Qf6 {[%clk 0:00:34]} 42. Qd7 {[%clk 0:00:10]}  g5 {[%clk 0:00:31]} 43. Qa4+ {[%clk 0:00:10]}  Kf5 {[%clk 0:00:31]} 44. Qc2+ {[%clk 0:00:10]}  Ke5 {[%clk 0:00:30]} 45. Qe2+ {[%clk 0:00:11]}  Kd6 {[%clk 0:00:30]} 46. Qe4 {[%clk 0:00:10]}  b5 {[%clk 0:00:20]} 47. Kg2 {[%clk 0:00:11]}  b4 {[%clk 0:00:20]} 48. Rd1 {[%clk 0:00:10]}  Kc5 {[%clk 0:00:19]} 49. Rc1+ {[%clk 0:00:09]}  Nc3 {[%clk 0:00:19]} 50. Qe3+ {[%clk 0:00:09]}  Kc4 {[%clk 0:00:20]} 51. Qe4+ {[%clk 0:00:08]}  Kc5 {[%clk 0:00:17]} 52. Qe3+ {[%clk 0:00:05]}  Kc4 {[%clk 0:00:17]} 53. Qe2+ {[%clk 0:00:04]}  Kc5 {[%clk 0:00:17]} 54. Qb2 {[%clk 0:00:04]}  Qd4 {[%clk 0:00:16]} 55. Kh2 {[%clk 0:00:04]}  e5 {[%clk 0:00:15]} 56. Re1 {[%clk 0:00:03]}  e4 {[%clk 0:00:15]} 57. Qc2 {[%clk 0:00:03]}  Qd3 {[%clk 0:00:15]} 58. Qb3 {[%clk 0:00:02]}  Qd2 {[%clk 0:00:13]} 59. Rf1 {[%clk 0:00:03]}  e3 {[%clk 0:00:14]} 60. Kg2 {[%clk 0:00:02]}  e2 {[%clk 0:00:14]} 61. Rh1 {[%clk 0:00:01]}  e1=Q {[%clk 0:00:14]} 62. Rxe1 {[%clk 0:00:02]}  Qxe1 {[%clk 0:00:15]} 63. Qf7 {[%clk 0:00:03]}  Qe4+ {[%clk 0:00:16]} 64. Kh2 {[%clk 0:00:03]}  g4 {[%clk 0:00:16]} 65. Qf8+ {[%clk 0:00:04]}  Kc4 {[%clk 0:00:16]} 66. hxg4 {[%clk 0:00:05]}  Qxg4 {[%clk 0:00:16]} 67. Qf7+ {[%clk 0:00:05]}  Kd3 {[%clk 0:00:15]} 68. Qh7+ {[%clk 0:00:05]}  Qe4 {[%clk 0:00:16]} 69. Qd7+ {[%clk 0:00:05]}  Ke2 {[%clk 0:00:15]} 70. f4 {[%clk 0:00:05]}  Kf1 {[%clk 0:00:15]} 71. Kh3 {[%clk 0:00:05]}  Ke2 {[%clk 0:00:14]} 72. f5 {[%clk 0:00:04]}  Nd5 {[%clk 0:00:14]} 73. Qe6 {[%clk 0:00:04]}  Qxe6 {[%clk 0:00:14]} 74. fxe6 {[%clk 0:00:05]}  b3 {[%clk 0:00:15]} 0-1


[Site "https://www.chess.com"]

[Event "Titled Tuesday Blitz December 06 Late 2022"]
[White "monkins"]
[Black "Bryant, Todd"]
[BlackFideId "2031299"]
[WhiteElo "2234"]
[BlackElo "2324"]
[Result "0-1"]
[Round "10"]
[TimeControl "180+1"]
[Date "2022.12.07"]
[WhiteClock "0:00:03"]
[BlackClock "0:00:09"]

1. Nf3 {[%clk 0:02:55]}  Nf6 {[%clk 0:02:58]} 2. c4 {[%clk 0:02:55]}  g6 {[%clk 0:02:57]} 3. Nc3 {[%clk 0:02:54]}  Bg7 {[%clk 0:02:57]} 4. g3 {[%clk 0:02:54]}  O-O {[%clk 0:02:57]} 5. Bg2 {[%clk 0:02:55]}  c5 {[%clk 0:02:58]} 6. d4 {[%clk 0:02:53]}  d6 {[%clk 0:02:57]} 7. O-O {[%clk 0:02:52]}  Nc6 {[%clk 0:02:56]} 8. dxc5 {[%clk 0:02:52]}  dxc5 {[%clk 0:02:56]} 9. Be3 {[%clk 0:02:53]}  Be6 {[%clk 0:02:43]} 10. Qa4 {[%clk 0:02:52]}  Nd4 {[%clk 0:02:35]} 11. Rfd1 {[%clk 0:01:37]}  Bd7 {[%clk 0:02:30]} 12. Qa3 {[%clk 0:01:27]}  Nc2 {[%clk 0:02:27]} 13. Qxc5 {[%clk 0:01:25]}  Nxa1 {[%clk 0:02:11]} 14. Rxa1 {[%clk 0:01:19]}  b6 {[%clk 0:02:10]} 15. Qb4 {[%clk 0:01:13]}  Rc8 {[%clk 0:02:03]} 16. Ne5 {[%clk 0:01:02]}  Qc7 {[%clk 0:01:57]} 17. Nxd7 {[%clk 0:00:52]}  Qxd7 {[%clk 0:01:55]} 18. Rd1 {[%clk 0:00:47]}  Qe6 {[%clk 0:01:45]} 19. Nd5 {[%clk 0:00:39]}  Nxd5 {[%clk 0:01:38]} 20. Bxd5 {[%clk 0:00:29]}  Qe5 {[%clk 0:01:38]} 21. b3 {[%clk 0:00:23]}  e6 {[%clk 0:01:28]} 22. Bf3 {[%clk 0:00:23]}  Rfd8 {[%clk 0:01:23]} 23. Rxd8+ {[%clk 0:00:21]}  Rxd8 {[%clk 0:01:24]} 24. Qe7 {[%clk 0:00:20]}  Qd6 {[%clk 0:01:00]} 25. Qxa7 {[%clk 0:00:19]}  Bd4 {[%clk 0:01:01]} 26. Bxd4 {[%clk 0:00:17]}  Qxd4 {[%clk 0:01:02]} 27. Kg2 {[%clk 0:00:18]}  h5 {[%clk 0:00:48]} 28. h4 {[%clk 0:00:17]}  Rd7 {[%clk 0:00:44]} 29. Qb8+ {[%clk 0:00:15]}  Kg7 {[%clk 0:00:43]} 30. Qc8 {[%clk 0:00:07]}  Rd8 {[%clk 0:00:38]} 31. Qc6 {[%clk 0:00:06]}  Rd6 {[%clk 0:00:38]} 32. Qb5 {[%clk 0:00:06]}  Qc5 {[%clk 0:00:37]} 33. a4 {[%clk 0:00:04]}  Qxb5 {[%clk 0:00:24]} 34. cxb5 {[%clk 0:00:04]}  Kf8 {[%clk 0:00:20]} 35. Be4 {[%clk 0:00:03]}  Ke7 {[%clk 0:00:20]} 36. Bd3 {[%clk 0:00:02]}  e5 {[%clk 0:00:17]} 37. Kf3 {[%clk 0:00:01]}  f5 {[%clk 0:00:17]} 38. Bc4 {[%clk 0:00:02]}  Rd2 {[%clk 0:00:11]} 39. e4 {[%clk 0:00:02]}  fxe4+ {[%clk 0:00:10]} 40. Ke3 {[%clk 0:00:03]}  Rd4 {[%clk 0:00:09]} 0-1


[Site "https://www.chess.com"]

[Event "Titled Tuesday Blitz December 06 Late 2022"]
[White "Abasov, Nijat"]
[Black "Chigaev, Maksim"]
[WhiteFideId "13402960"]
[BlackFideId "4108116"]
[WhiteElo "2546"]
[BlackElo "2542"]
[Result "0-1"]
[Round "11"]
[TimeControl "180+1"]
[Date "2022.12.06"]
[WhiteClock "0:00:01"]
[BlackClock "0:00:05"]

1. d4 {[%clk 0:02:56]}  Nf6 {[%clk 0:03:00]} 2. Nf3 {[%clk 0:02:57]}  g6 {[%clk 0:03:00]} 3. g3 {[%clk 0:02:56]}  Bg7 {[%clk 0:03:00]} 4. Bg2 {[%clk 0:02:57]}  O-O {[%clk 0:03:01]} 5. O-O {[%clk 0:02:58]}  d6 {[%clk 0:03:02]} 6. Nc3 {[%clk 0:02:53]}  Nc6 {[%clk 0:02:53]} 7. e4 {[%clk 0:02:51]}  Bg4 {[%clk 0:02:52]} 8. h3 {[%clk 0:02:39]}  Bxf3 {[%clk 0:02:53]} 9. Bxf3 {[%clk 0:02:40]}  Nd7 {[%clk 0:02:53]} 10. d5 {[%clk 0:02:30]}  Nce5 {[%clk 0:02:49]} 11. Be2 {[%clk 0:02:27]}  Nb6 {[%clk 0:02:49]} 12. a4 {[%clk 0:02:24]}  a5 {[%clk 0:02:49]} 13. Ra3 {[%clk 0:02:12]}  c6 {[%clk 0:02:47]} 14. Rb3 {[%clk 0:02:07]}  Nec4 {[%clk 0:02:01]} 15. Kg2 {[%clk 0:01:41]}  Qc7 {[%clk 0:01:54]} 16. h4 {[%clk 0:01:38]}  h5 {[%clk 0:01:27]} 17. Qd3 {[%clk 0:01:27]}  Rac8 {[%clk 0:01:21]} 18. Rd1 {[%clk 0:01:19]}  Ne5 {[%clk 0:01:14]} 19. Qe3 {[%clk 0:01:15]}  Nbd7 {[%clk 0:01:03]} 20. f4 {[%clk 0:01:03]}  Ng4 {[%clk 0:01:03]} 21. Bxg4 {[%clk 0:00:59]}  hxg4 {[%clk 0:01:03]} 22. Qe2 {[%clk 0:00:59]}  Nf6 {[%clk 0:01:01]} 23. Be3 {[%clk 0:00:55]}  Rfe8 {[%clk 0:00:47]} 24. Bb6 {[%clk 0:00:54]}  Qd7 {[%clk 0:00:47]} 25. Bxa5 {[%clk 0:00:53]}  cxd5 {[%clk 0:00:47]} 26. exd5 {[%clk 0:00:54]}  e6 {[%clk 0:00:47]} 27. Qb5 {[%clk 0:00:53]}  Qxb5 {[%clk 0:00:34]} 28. Rxb5 {[%clk 0:00:54]}  exd5 {[%clk 0:00:20]} 29. Kf2 {[%clk 0:00:48]}  Rxc3 {[%clk 0:00:20]} 30. bxc3 {[%clk 0:00:43]}  Ne4+ {[%clk 0:00:20]} 31. Kg2 {[%clk 0:00:42]}  Bxc3 {[%clk 0:00:17]} 32. Rbxd5 {[%clk 0:00:36]}  Bxa5 {[%clk 0:00:16]} 33. Rxa5 {[%clk 0:00:37]}  Rc8 {[%clk 0:00:17]} 34. Rc1 {[%clk 0:00:32]}  Rc3 {[%clk 0:00:17]} 35. Rb5 {[%clk 0:00:26]}  Rxg3+ {[%clk 0:00:17]} 36. Kf1 {[%clk 0:00:23]}  Rf3+ {[%clk 0:00:16]} 37. Ke1 {[%clk 0:00:22]}  g3 {[%clk 0:00:16]} 38. Rb3 {[%clk 0:00:15]}  Rxf4 {[%clk 0:00:14]} 39. Ke2 {[%clk 0:00:15]}  Rxh4 {[%clk 0:00:11]} 40. Rxb7 {[%clk 0:00:13]}  Nc5 {[%clk 0:00:05]} 41. Rb8+ {[%clk 0:00:13]}  Kg7 {[%clk 0:00:05]} 42. a5 {[%clk 0:00:12]}  Ra4 {[%clk 0:00:06]} 43. Kf3 {[%clk 0:00:12]}  Ra3+ {[%clk 0:00:06]} 44. Kg2 {[%clk 0:00:12]}  Ne4 {[%clk 0:00:05]} 45. Rb5 {[%clk 0:00:10]}  f5 {[%clk 0:00:05]} 46. Rd1 {[%clk 0:00:10]}  Kf6 {[%clk 0:00:06]} 47. Rbd5 {[%clk 0:00:05]}  Ra2 {[%clk 0:00:05]} 48. Rc1 {[%clk 0:00:05]}  Kg5 {[%clk 0:00:05]} 49. Kf3 {[%clk 0:00:04]}  Kf6 {[%clk 0:00:05]} 50. Kg2 {[%clk 0:00:04]}  g5 {[%clk 0:00:06]} 51. Rf1 {[%clk 0:00:03]}  Rxc2+ {[%clk 0:00:05]} 52. Kg1 {[%clk 0:00:04]}  f4 {[%clk 0:00:05]} 53. Ra1 {[%clk 0:00:03]}  f3 {[%clk 0:00:04]} 54. a6 {[%clk 0:00:03]}  Rg2+ {[%clk 0:00:03]} 55. Kf1 {[%clk 0:00:03]}  Rh2 {[%clk 0:00:03]} 56. Kg1 {[%clk 0:00:01]}  f2+ {[%clk 0:00:04]} 57. Kf1 {[%clk 0:00:02]}  Rh1+ {[%clk 0:00:04]} 58. Kg2 {[%clk 0:00:03]}  Rxa1 {[%clk 0:00:05]} 59. Rd1 {[%clk 0:00:01]}  Rxd1 {[%clk 0:00:05]} 0-1


[Site "https://www.chess.com"]

[Event "Titled Tuesday Blitz December 06 Late 2022"]
[White "Ambartsumova, Karina"]
[Black "Winterberg, Lukas"]
[WhiteFideId "4166299"]
[BlackFideId "24622702"]
[WhiteElo "2319"]
[BlackElo "2350"]
[Result "1-0"]
[Round "11"]
[TimeControl "180+1"]
[Date "2022.12.06"]
[WhiteClock "0:00:05"]
[BlackClock "0:00:02"]

1. Nf3 {[%clk 0:03:00]}  Nf6 {[%clk 0:02:57]} 2. g3 {[%clk 0:03:00]}  e6 {[%clk 0:02:57]} 3. Bg2 {[%clk 0:03:00]}  d5 {[%clk 0:02:58]} 4. c4 {[%clk 0:03:00]}  Be7 {[%clk 0:02:59]} 5. O-O {[%clk 0:03:00]}  O-O {[%clk 0:02:59]} 6. b3 {[%clk 0:03:00]}  d4 {[%clk 0:03:00]} 7. e3 {[%clk 0:03:01]}  c5 {[%clk 0:03:00]} 8. exd4 {[%clk 0:03:00]}  cxd4 {[%clk 0:03:01]} 9. Re1 {[%clk 0:03:01]}  Nc6 {[%clk 0:03:01]} 10. d3 {[%clk 0:02:50]}  Re8 {[%clk 0:02:56]} 11. Ne5 {[%clk 0:02:36]}  Nxe5 {[%clk 0:02:54]} 12. Rxe5 {[%clk 0:02:37]}  Bd6 {[%clk 0:02:55]} 13. Re1 {[%clk 0:02:36]}  e5 {[%clk 0:02:55]} 14. Nd2 {[%clk 0:02:25]}  Rb8 {[%clk 0:02:54]} 15. a3 {[%clk 0:02:19]}  a5 {[%clk 0:02:53]} 16. Ne4 {[%clk 0:02:15]}  Nxe4 {[%clk 0:02:52]} 17. Bxe4 {[%clk 0:02:16]}  f5 {[%clk 0:02:48]} 18. Bg2 {[%clk 0:02:08]}  Kh8 {[%clk 0:02:45]} 19. Bd2 {[%clk 0:02:05]}  Bd7 {[%clk 0:02:44]} 20. b4 {[%clk 0:02:04]}  b5 {[%clk 0:02:18]} 21. c5 {[%clk 0:01:55]}  Bc7 {[%clk 0:02:13]} 22. Qh5 {[%clk 0:01:49]}  Qf6 {[%clk 0:02:09]} 23. Rac1 {[%clk 0:01:28]}  a4 {[%clk 0:01:55]} 24. Qf3 {[%clk 0:01:09]}  Re7 {[%clk 0:01:29]} 25. h4 {[%clk 0:01:02]}  h6 {[%clk 0:01:29]} 26. Qh5 {[%clk 0:00:48]}  Qf7 {[%clk 0:01:08]} 27. Qxf7 {[%clk 0:00:42]}  Rxf7 {[%clk 0:01:09]} 28. Bd5 {[%clk 0:00:42]}  Re7 {[%clk 0:01:08]} 29. f4 {[%clk 0:00:34]}  Rbe8 {[%clk 0:01:05]} 30. fxe5 {[%clk 0:00:21]}  Rxe5 {[%clk 0:01:06]} 31. Rxe5 {[%clk 0:00:20]}  Bxe5 {[%clk 0:00:57]} 32. Kg2 {[%clk 0:00:19]}  Bc7 {[%clk 0:00:52]} 33. Kf3 {[%clk 0:00:17]}  Re5 {[%clk 0:00:45]} 34. Bb7 {[%clk 0:00:17]}  Re7 {[%clk 0:00:39]} 35. Bf4 {[%clk 0:00:16]}  Be8 {[%clk 0:00:19]} 36. Bd5 {[%clk 0:00:12]}  Kh7 {[%clk 0:00:17]} 37. c6 {[%clk 0:00:12]}  Kg6 {[%clk 0:00:15]} 38. Rc5 {[%clk 0:00:11]}  Kf6 {[%clk 0:00:13]} 39. Rxb5 {[%clk 0:00:10]}  g5 {[%clk 0:00:13]} 40. Bxc7 {[%clk 0:00:10]}  Rxc7 {[%clk 0:00:13]} 41. Rc5 {[%clk 0:00:09]}  Ke7 {[%clk 0:00:10]} 42. hxg5 {[%clk 0:00:07]}  hxg5 {[%clk 0:00:11]} 43. b5 {[%clk 0:00:05]}  Kd6 {[%clk 0:00:12]} 44. b6 {[%clk 0:00:05]}  Re7 {[%clk 0:00:06]} 45. b7 {[%clk 0:00:03]}  Kc7 {[%clk 0:00:03]} 46. Rb5 {[%clk 0:00:03]}  Kb8 {[%clk 0:00:04]} 47. Kf2 {[%clk 0:00:03]}  Rc7 {[%clk 0:00:04]} 48. Ra5 {[%clk 0:00:03]}  Bxc6 {[%clk 0:00:04]} 49. Bxc6 {[%clk 0:00:04]}  Rxc6 {[%clk 0:00:05]} 50. Rxf5 {[%clk 0:00:04]}  Rc3 {[%clk 0:00:04]} 51. Rxg5 {[%clk 0:00:04]}  Rxd3 {[%clk 0:00:05]} 52. Rg7 {[%clk 0:00:03]}  Rxa3 {[%clk 0:00:05]} 53. g4 {[%clk 0:00:04]}  Rb3 {[%clk 0:00:04]} 54. Rg5 {[%clk 0:00:04]}  a3 {[%clk 0:00:04]} 55. Ra5 {[%clk 0:00:04]}  Kxb7 {[%clk 0:00:03]} 56. g5 {[%clk 0:00:05]}  Kb6 {[%clk 0:00:03]} 57. Ra8 {[%clk 0:00:04]}  Kc5 {[%clk 0:00:02]} 58. g6 {[%clk 0:00:05]} 1-0


[Site "https://www.chess.com"]

[Event "Titled Tuesday Blitz December 06 Late 2022"]
[White "Arbunic Castro, Giovanna"]
[Black "Floresvillar Gonzalez, Luis Migu"]
[WhiteFideId "3400549"]
[BlackFideId "5100542"]
[WhiteElo "1939"]
[BlackElo "2040"]
[Result "0-1"]
[Round "11"]
[TimeControl "180+1"]
[Date "2022.12.07"]
[WhiteClock "0:00:03"]
[BlackClock "0:00:03"]

1. e4 {[%clk 0:03:00]}  c6 {[%clk 0:02:59]} 2. d4 {[%clk 0:02:59]}  d5 {[%clk 0:03:00]} 3. e5 {[%clk 0:02:58]}  c5 {[%clk 0:02:57]} 4. dxc5 {[%clk 0:02:56]}  Nc6 {[%clk 0:02:55]} 5. Bb5 {[%clk 0:02:54]}  e6 {[%clk 0:02:46]} 6. Be3 {[%clk 0:02:52]}  Bd7 {[%clk 0:02:44]} 7. Bxc6 {[%clk 0:02:49]}  Bxc6 {[%clk 0:02:42]} 8. Nf3 {[%clk 0:02:45]}  Ne7 {[%clk 0:02:31]} 9. c3 {[%clk 0:02:43]}  a5 {[%clk 0:02:30]} 10. O-O {[%clk 0:02:41]}  Ng6 {[%clk 0:02:29]} 11. Bd4 {[%clk 0:02:38]}  a4 {[%clk 0:02:27]} 12. Re1 {[%clk 0:02:18]}  Qa5 {[%clk 0:02:22]} 13. Nbd2 {[%clk 0:01:42]}  Be7 {[%clk 0:01:53]} 14. b4 {[%clk 0:01:40]}  Qc7 {[%clk 0:01:42]} 15. a3 {[%clk 0:01:38]}  O-O {[%clk 0:01:40]} 16. Qe2 {[%clk 0:01:32]}  Qd7 {[%clk 0:01:38]} 17. Qe3 {[%clk 0:01:25]}  Bb5 {[%clk 0:01:35]} 18. g3 {[%clk 0:01:20]}  Rac8 {[%clk 0:01:30]} 19. h4 {[%clk 0:01:16]}  f5 {[%clk 0:01:23]} 20. exf6 {[%clk 0:01:05]}  Rxf6 {[%clk 0:01:06]} 21. Bxf6 {[%clk 0:01:03]}  Bxf6 {[%clk 0:01:06]} 22. Nd4 {[%clk 0:00:42]}  e5 {[%clk 0:00:58]} 23. Nxb5 {[%clk 0:00:40]}  Qxb5 {[%clk 0:00:58]} 24. Nf3 {[%clk 0:00:36]}  e4 {[%clk 0:00:48]} 25. Rad1 {[%clk 0:00:33]}  exf3 {[%clk 0:00:40]} 26. Qxf3 {[%clk 0:00:32]}  Rd8 {[%clk 0:00:25]} 27. Rxd5 {[%clk 0:00:30]}  Rxd5 {[%clk 0:00:24]} 28. Qxd5+ {[%clk 0:00:29]}  Kh8 {[%clk 0:00:16]} 29. Qd6 {[%clk 0:00:19]}  h6 {[%clk 0:00:15]} 30. c6 {[%clk 0:00:16]}  bxc6 {[%clk 0:00:14]} 31. Re8+ {[%clk 0:00:14]}  Kh7 {[%clk 0:00:13]} 32. Qd7 {[%clk 0:00:11]}  Qc4 {[%clk 0:00:09]} 33. Qh3 {[%clk 0:00:09]}  Qxc3 {[%clk 0:00:08]} 34. h5 {[%clk 0:00:07]}  Ne7 {[%clk 0:00:05]} 35. Rxe7 {[%clk 0:00:06]}  Bxe7 {[%clk 0:00:05]} 36. Qf5+ {[%clk 0:00:06]}  Kg8 {[%clk 0:00:04]} 37. Qe6+ {[%clk 0:00:05]}  Kf8 {[%clk 0:00:04]} 38. Qc8+ {[%clk 0:00:05]}  Kf7 {[%clk 0:00:04]} 39. Qf5+ {[%clk 0:00:04]}  Qf6 {[%clk 0:00:04]} 40. Qe4 {[%clk 0:00:04]}  Qe6 {[%clk 0:00:03]} 41. Qf4+ {[%clk 0:00:03]}  Bf6 {[%clk 0:00:03]} 0-1


[Site "https://www.chess.com"]

[Event "Titled Tuesday Blitz December 06 Late 2022"]
[White "Burke, Paul"]
[Black "Vargas, Mauricio"]
[WhiteFideId "2605767"]
[BlackFideId "4404572"]
[WhiteElo "1882"]
[BlackElo "2025"]
[Result "1-0"]
[Round "11"]
[TimeControl "180+1"]
[Date "2022.12.07"]
[WhiteClock "0:00:43"]
[BlackClock "0:00:03"]

1. e4 {[%clk 0:03:00]}  c6 {[%clk 0:02:32]} 2. d4 {[%clk 0:02:59]}  d5 {[%clk 0:02:33]} 3. exd5 {[%clk 0:02:59]}  cxd5 {[%clk 0:02:34]} 4. c4 {[%clk 0:02:59]}  Nc6 {[%clk 0:02:35]} 5. Nc3 {[%clk 0:02:59]}  Nf6 {[%clk 0:02:35]} 6. Nf3 {[%clk 0:02:59]}  Bg4 {[%clk 0:02:27]} 7. Be2 {[%clk 0:02:59]}  e6 {[%clk 0:02:26]} 8. O-O {[%clk 0:02:59]}  a6 {[%clk 0:02:26]} 9. c5 {[%clk 0:02:59]}  Be7 {[%clk 0:02:25]} 10. a3 {[%clk 0:02:59]}  O-O {[%clk 0:02:24]} 11. b4 {[%clk 0:02:59]}  Na7 {[%clk 0:02:22]} 12. a4 {[%clk 0:02:51]}  Nc6 {[%clk 0:02:21]} 13. b5 {[%clk 0:02:50]}  axb5 {[%clk 0:02:18]} 14. Nxb5 {[%clk 0:02:49]}  Re8 {[%clk 0:01:58]} 15. Bf4 {[%clk 0:02:47]}  Ra7 {[%clk 0:01:33]} 16. Nxa7 {[%clk 0:02:43]}  Nxa7 {[%clk 0:01:33]} 17. Bb5 {[%clk 0:02:15]}  Ne4 {[%clk 0:01:22]} 18. Bxe8 {[%clk 0:02:07]}  Qxe8 {[%clk 0:01:21]} 19. h3 {[%clk 0:02:01]}  Bh5 {[%clk 0:01:20]} 20. g4 {[%clk 0:02:00]}  Bg6 {[%clk 0:01:19]} 21. Ne5 {[%clk 0:01:46]}  Ng5 {[%clk 0:01:08]} 22. Bxg5 {[%clk 0:01:41]}  Bxg5 {[%clk 0:01:08]} 23. f4 {[%clk 0:01:34]}  Bh4 {[%clk 0:01:01]} 24. f5 {[%clk 0:01:18]}  exf5 {[%clk 0:00:51]} 25. gxf5 {[%clk 0:01:16]}  f6 {[%clk 0:00:45]} 26. fxg6 {[%clk 0:01:05]}  fxe5 {[%clk 0:00:42]} 27. gxh7+ {[%clk 0:01:03]}  Kh8 {[%clk 0:00:41]} 28. dxe5 {[%clk 0:00:59]}  Qxe5 {[%clk 0:00:30]} 29. Qf3 {[%clk 0:00:57]}  Qd4+ {[%clk 0:00:19]} 30. Kh1 {[%clk 0:00:56]}  Qe4 {[%clk 0:00:18]} 31. Qxe4 {[%clk 0:00:55]}  dxe4 {[%clk 0:00:15]} 32. Rf4 {[%clk 0:00:55]}  Bf6 {[%clk 0:00:13]} 33. Re1 {[%clk 0:00:51]}  e3 {[%clk 0:00:10]} 34. Rxe3 {[%clk 0:00:49]}  Bg5 {[%clk 0:00:09]} 35. Re8+ {[%clk 0:00:44]}  Kxh7 {[%clk 0:00:09]} 36. Rf7 {[%clk 0:00:44]}  Nc6 {[%clk 0:00:03]} 37. Rxb7 {[%clk 0:00:43]} 1-0


[Site "https://www.chess.com"]

[Event "Titled Tuesday Blitz December 06 Late 2022"]
[White "Curtis, John"]
[Black "Castellanos Gomez, Alejandro"]
[WhiteFideId "3200256"]
[BlackFideId "22284141"]
[WhiteElo "2203"]
[BlackElo "2168"]
[Result "1-0"]
[Round "11"]
[TimeControl "180+1"]
[Date "2022.12.07"]
[WhiteClock "0:00:15"]
[BlackClock "0:00:23"]

1. e4 {[%clk 0:03:00]}  c5 {[%clk 0:02:54]} 2. Nf3 {[%clk 0:03:00]}  d6 {[%clk 0:02:51]} 3. d4 {[%clk 0:02:58]}  cxd4 {[%clk 0:02:50]} 4. Nxd4 {[%clk 0:02:58]}  Nf6 {[%clk 0:02:51]} 5. Nc3 {[%clk 0:02:57]}  g6 {[%clk 0:02:52]} 6. Be3 {[%clk 0:02:54]}  Bg7 {[%clk 0:02:52]} 7. f3 {[%clk 0:02:54]}  O-O {[%clk 0:02:52]} 8. Qd2 {[%clk 0:02:54]}  Nc6 {[%clk 0:02:53]} 9. O-O-O {[%clk 0:02:54]}  Bd7 {[%clk 0:02:53]} 10. Kb1 {[%clk 0:02:54]}  Rc8 {[%clk 0:02:46]} 11. Nxc6 {[%clk 0:02:53]}  Bxc6 {[%clk 0:02:40]} 12. Bh6 {[%clk 0:02:52]}  b5 {[%clk 0:02:19]} 13. Bxg7 {[%clk 0:02:50]}  Kxg7 {[%clk 0:02:19]} 14. Bxb5 {[%clk 0:02:39]}  Bxb5 {[%clk 0:02:11]} 15. Nxb5 {[%clk 0:02:39]}  Rb8 {[%clk 0:02:11]} 16. Nd4 {[%clk 0:02:24]}  Qb6 {[%clk 0:02:10]} 17. b3 {[%clk 0:02:22]}  a5 {[%clk 0:02:08]} 18. h4 {[%clk 0:02:18]}  h5 {[%clk 0:02:07]} 19. Qg5 {[%clk 0:02:06]}  e6 {[%clk 0:01:55]} 20. g4 {[%clk 0:01:56]}  a4 {[%clk 0:01:55]} 21. gxh5 {[%clk 0:01:50]}  Nxh5 {[%clk 0:01:54]} 22. Rhg1 {[%clk 0:01:47]}  Rh8 {[%clk 0:01:48]} 23. f4 {[%clk 0:01:27]}  axb3 {[%clk 0:01:24]} 24. cxb3 {[%clk 0:01:20]}  Ra8 {[%clk 0:01:21]} 25. f5 {[%clk 0:01:16]}  exf5 {[%clk 0:01:01]} 26. Nxf5+ {[%clk 0:01:06]}  Kg8 {[%clk 0:00:53]} 27. Rxd6 {[%clk 0:01:05]}  Qa7 {[%clk 0:00:37]} 28. Rg2 {[%clk 0:00:19]}  Rh7 {[%clk 0:00:23]} 29. Rd8+ {[%clk 0:00:15]} 1-0


[Site "https://www.chess.com"]